Workbook

Sheet Table of Contents
A1: Kaileigh Abreu
A2: SUA Month-End/Year-End
A4: Location of Reports
A6: Bank Reconciliation
A7: Worksheet
A8: Statement of Income and Retained Earnings
A9: Comparative Balance Sheet
A10: Aged Trial Balance of Accounts Payable
A11: Trial Balance of Accounts Payable
A12: Trial Balance of Fixed Assets
A13: Post-Closing Trial Balance

Sheet Bank Reconciliation
A1: Waren Sports Supply
A2: Banck Reconciliation
A3: 2017-12-31
C5: Bank Statement | D5: General Ledger
A6: Unadjusted Balance, 12-31-17 | C6: $103,372.26 | D6: $85,818.56
A7: Add: Deposits In Transit
A8: 2019-12-26 | B8: $10,000.00
A9: 2019-12-26 | B9: $7,855.00
A10: 2019-12-26 | B10: $1,400.00
A11: 2019-12-28 | B11: $10,319.40
A12: 2019-12-29 | B12: $4,276.00
A13: 2019-12-29 | B13: $1,800.00 | C13: =SUM(B8:B13) -> $35,650.40
A15: Deduct: Outstanding Checks
A16: #1118 | B16: $1,985.21
A17: #1143 | B17: $4,800.00
A18: #1152 | B18: $346.75
A19: #1153 | B19: $15,760.36
A20: #1154 | B20: $2,885.42
A21: #1155 | B21: $1,625.83
A22: #1156 | B22: $1,375.03
A23: #1157 | B23: $1,470.00
A24: #1158 | B24: $2,181.00
A25: #1159 | B25: $12,000.00
A26: #1160 | B26: $1,800.00
A27: #1161 | B27: $7,000.00 | C27: =-SUM(B16:B27) -> $(53,229.60)
A29: Adjustments:
A30: Bank Service Charge | D30: $(25.50)
A31: Adjusted Balance, 12-31-17 | C31: =SUM(C6:C27) -> $85,793.06 | D31: =SUM(D6:D30) -> $85,793.06
A33: Journal Enrty-Decemeber 31, 2017 | C33: Debit | D33: Credit
A34: 41000 | B34: Other Operating Expenses | C34: $25.50
A35: 10100 | B35: Cash | D35: $25.50

Sheet Worksheet
A1: Waren Sports Supply
A2: Year-End Worksheet
A3: 2017-12-31
A4: ACCT. NO | B4: Account Title | C4: 12-31-16 Post-Closing | E4: 12-31-17 Post-Closing | G4: Adjustments | I4: Adjusted | K4: Income | M4: Balance
C5: Trial Balance | E5: Trial Balance | I5: Trial Balance | K5: Statement | M5: Sheet
C6: Debit | D6: Credit | E6: Debit | F6: Credit | G6: Debit | H6: Credit | I6: Debit | J6: Credit | K6: Debit | L6: Credit | M6: Debit | N6: Credit
B7: Assets
A8: 10100 | B8: Cash | C8: $11,025.19 | E8: $85,793.06 | I8: =IF(SUM(E8:G8)=0,"",SUM(E8:G8)) -> $85,793.06 | M8: =I8 -> $85,793.06
A9: 10200 | B9: Accounts Receivable | C9: $11,065.00 | E9: $49,396.00 | I9: =IF(SUM(E9:G9)=0,"",SUM(E9:G9)) -> $49,396.00 | M9: =I9 -> $49,396.00
A10: 10210 | B10: Accounts Receivable from Employees | E10: $375.00 | I10: $375.00 | M10: =I10 -> $375.00
A11: 10300 | B11: Allowance for Doubtful Accounts | D11: $3,250.81 | E11: $1,149.19 | H11: $3,814.84 | J11: =IF(SUM(H11:I11)=0,"",SUM(H11:I11)) -> $3,814.84 | N11: =J11 -> $3,814.84
A12: 10400 | B12: Inventory | C12: $101,681.00 | E12: $101,681.00 | G12: $85,196.00 | I12: $186,877.00 | M12: =I12 -> $186,877.00
A13: 10500 | B13: Prepaid Expenses | E13: $1,500.00 | I13: $1,500.00 | M13: =I13 -> $1,500.00
A14: 10600 | B14: Marketable Securities | E14: $22,819.00 | I14: $22,819.00 | M14: =I14 -> $22,819.00
A15: 10700 | B15: Interest Receivable | J15: =IF(SUM(F15:H15)=0,"",SUM(F15:H15)) -> 
A16: 10800 | B16: Fixed Assets | C16: $320,665.00 | E16: $330,481.40 | I16: $330,481.40 | M16: =I16 -> $330,481.40
A17: 10900 | B17: Accumulated Depreciation | D17: $81,559.50 | F17: $80,309.50 | H17: $35,023.64 | J17: $115,333.14 | N17: =J17 -> $115,333.14
A18: 11000 | B18: Notes Receivable | E18: $7,000.00 | I18: $7,000.00 | M18: =I18 -> $7,000.00
B19: Liabilities | N19: =J20 -> $7,952.01
A20: 20100 | B20: Accounts Payable | D20: $11,279.35 | F20: $7,952.01 | J20: $7,952.01
A21: 20200 | B21: Wages and Salaries Payable
A22: 20300 | B22: Federal Income Tax Withheld | D22: $1,326.76 | F22: $1,415.00 | J22: $1,415.00 | N22: =IF(SUM(J22:L22)=0,"",SUM(J22:L22)) -> $1,415.00
A23: 20400 | B23: State Unemployment Taxes Payable | D23: $281.17 | F23: $109.82 | J23: $109.82 | N23: $109.82
A24: 20500 | B24: Federal Unemployment Taxes Payable | D24: $83.31 | F24: $18.56 | J24: $18.56 | N24: $18.56
A25: 20600 | B25: FICA Taxes Payable | D25: $1,593.30 | F25: $2,196.76 | J25: $2,196.76 | N25: $2,196.76
A26: 20700 | B26: Federal Income Taxes Payable | D26: $29,797.00 | H26: $28,406.84 | J26: $28,406.84 | N26: $28,406.84
A27: 20800 | B27: Dividends Payable | F27: $8,250.00 | J27: $8,250.00 | N27: $8,250.00
A28: 20900 | B28: Interest Payable | H28: $106.85 | J28: $106.85 | N28: $106.85
A29: 21000 | B29: Notes Payable | F29: $48,000.00 | J29: $48,000.00 | N29: $48,000.00
A30: 21100 | B30: Unearned Revenue | F30: $1,800.00 | J30: $1,800.00 | N30: $1,800.00
B31: Stockholder's Equity
A32: 26000 | B32: Common Stock | D32: $225,000.00 | F32: =D32 -> $225,000.00 | J32: $225,000.00 | N32: =J32 -> $225,000.00
A33: 27000 | B33: Paid-in Capital in Excess of Par
A34: 28000 | B34: Income Summary
A35: 29000 | B35: Retained Earnings | D35: $90,264.99 | F35: =D35 -> $90,264.99 | J35: $90,264.99 | N35: =J35 -> $90,264.99
A36: 29010 | B36: Dividends Declared | E36: $8,250.00 | I36: $8,250.00 | M36: =I36 -> $8,250.00
B37: Revenue and Gross Profit
A38: 30100 | B38: Sales | F38: $1,602,660.00 | J38: $1,602,660.00 | L38: =J38 -> $1,602,660.00
A39: 30200 | B39: Sales Returns and Allowances | E39: $61,106.00 | I39: $61,106.00 | K39: =I39 -> $61,106.00
A40: 30300 | B40: Sales Discounts Taken | E40: $15,616.22 | I40: $15,616.22 | K40: =I40 -> $15,616.22
A41: 30400 | B41: Cost of Goods Sold | G41: $1,033,957.16 | I41: $1,033,957.16 | K41: =I41 -> $1,033,957.16
A42: 30500 | B42: Purchases | E42: $1,130,697.00 | H42: $1,130,697.00
A43: 30600 | B43: Purchases Returns and Allowances | F43: $19,445.00 | G43: $19,445.00 | J43: $19,445.00
A44: 30700 | B44: Purchases Discounts Taken | F44: $16,605.24 | G44: $16,605.24 | J44: $16,605.24
A45: 30800 | B45: Freight-In | E45: $24,506.64 | H45: =E45 -> $24,506.64
B46: Other Income/Expenses
A47: 30900 | B47: Gain/Loss on Sale of Fixed Assets | F47: $375.00 | J47: $375.00 | L47: =J47 -> $375.00
A48: 31000 | B48: Gain/Loss on Sale of Marketable Securities | F48: $914.00 | J48: $914.00 | L48: =J48 -> $914.00
A49: 31100 | B49: Interest/Dividend Income | F49: $1,400.00 | J49: =IF(SUM(F49:H49)=0,"",SUM(F49:H49)) -> $1,400.00 | L49: =J49 -> $1,400.00
A50: 31200 | B50: Miscellaneous Revenue | F50: $825.00 | J50: $825.00 | L50: =J50 -> $825.00
B51: Expenses
A52: 40100 | B52: Rent Expense | E52: $57,600.00 | I52: $57,600.00 | K52: =I52 -> $57,600.00
A53: 40200 | B53: Advertising Expense | E53: $22,275.00 | I53: $22,275.00 | K53: $22,275.00
A54: 40300 | B54: Office supplies Expense | E54: $5,664.91 | I54: $5,664.91 | K54: $5,664.91
A55: 40400 | B55: Depreciation Expense | G55: $35,023.64 | I55: =IF(SUM(E55:G55)=0,"",SUM(E55:G55)) -> $35,023.64 | K55: $35,023.64
A56: 40500 | B56: Wages and Salaries Expense | E56: $140,450.46 | I56: $140,450.46 | K56: $140,450.46
A57: 40600 | B57: Payroll Tax Expense | E57: $11,594.25 | I57: $11,594.25 | K57: $11,594.25
A58: 40700 | B58: Federal Income Tax Expense | G58: $28,406.84 | I58: $28,406.84 | K58: $28,406.84
A59: 40800 | B59: Interest Expense | G59: $106.85 | I59: $106.85 | K59: =I59 -> $106.85
A60: 40900 | B60: Bad Debt Expense | G60: $3,814.84 | I60: $3,814.84 | K60: =I60 -> $3,814.84
A61: 41000 | B61: Other Operating Expenses | E61: $29,585.75 | I61: $29,585.75 | K61: =I61 -> $29,585.75
B63: Sub-Totals | K63: =SUM(K39:K61) -> $1,445,201.92 | N63: =SUM(N8:N61) -> $532,668.81
B64: Net Income (Loss) | K64: =L65-K63 -> $160,972.08 | N64: =K64 -> $160,972.08
B65: Totals | C65: =SUM(C8:C61) -> $444,436.19 | D65: =SUM(D8:D61) -> $444,436.19 | E65: =SUM(E8:E61) -> $2,107,540.88 | F65: =SUM(F8:F61) -> $2,107,540.88 | G65: =SUM(G8:G61) -> $1,222,555.57 | H65: $1,222,555.81 | I65: $2,137,693.38 | J65: =SUM(J8:J61) -> $2,174,893.05 | K65: =K63+K64 -> $1,606,174.00 | L65: $1,606,174.00 | M65: $692,491.46 | N65: =N63+N64 -> $693,640.89
J66: RK

Sheet Statement of Income
A1: Waren Sports Supply
A2: Statement Of Income and Reatined Earnings
A3: For the Year Ended December 31, 2017
A5: Revenue
A6: Sales | C6: =Worksheet!F38 -> $1,602,660.00
A7: Less: Sales Returns and allowances | C7: =Worksheet!I39 -> $61,106.00
A8: Sales Discounts taken | C8: =Worksheet!I40 -> $15,616.22
A9: Net Sales | C9: =C6-C7-C8 -> $1,525,937.78
A10: Cost of Goods Sold
A11: Beginning Inventory | B11: =Worksheet!E12 -> $101,681.00
A12: Net Purchases | B12: $1,004,509.36
A13: Freight-In | B13: =Worksheet!E45 -> $24,506.64
A14: Goods Available for sale | B14: =SUM(B11:B13) -> $1,130,697.00
A15: Less: Ending Inventory | B15: =Worksheet!I12 -> $186,877.00
A16: Cost of goods sold | C16: $1,033,957.16
A17: Gross Margin | C17: =C9-C16 -> $491,980.62
A18: Operating Expenses
A19: Rent Expense | C19: =Worksheet!E52 -> $57,600.00
A20: Adversting Expense | C20: =Worksheet!E53 -> $22,275.00
A21: Office Supply expense | C21: =Worksheet!I54 -> $5,664.91
A22: Depreciation expense | C22: =Worksheet!H17 -> $35,023.64
A23: Wages and salaries expense | C23: =Worksheet!E56 -> $140,450.46
A24: Payroll taxe expense | C24: =Worksheet!E57 -> $11,594.25
A25: Bad debt expense | C25: =Worksheet!H11 -> $3,814.84
A26: Other operation expense | C26: =Worksheet!E61 -> $29,585.75
A27: Total operating expense | C27: =SUM(C19:C26) -> $306,008.85
A28: Operating Income | C28: =C17-C27 -> $185,971.77
A29: Other Income - Miscellaneous Income
A30: Gain on sale of fixed assets | C30: =Worksheet!L47 -> $375.00
A31: gain on sale of marketable securities | C31: =Worksheet!L48 -> $914.00
A32: Interest/dividend income | C32: =Worksheet!L49 -> $1,400.00
A33: Miscellaneous Income | C33: =Worksheet!L50 -> $825.00
C34: =SUM(C30:C33) -> $3,514.00
A35: Other Expense- Interst expense | C35: =Worksheet!G59 -> $106.85
A36: Income before taxes | C36: =C28+C34+C35 -> $189,592.62
A37: Federal Income taxes | C37: =Worksheet!I58 -> $28,406.84
A38: Net Income | C38: =C36+C37 -> $217,999.46
A39: Retained Earnings - Beginning of year | C39: =Worksheet!F35 -> $90,264.99
C40: =C38+C39 -> $308,264.45
A41: Less: Dividend declared | C41: =Worksheet!I36 -> $8,250.00
A42: Retained earnings - End of year | C42: =C40-C41 -> $300,014.45

Sheet Classified Balance Sheet
A1: Waren Sports Supply
A2: Balance Sheet
A3: At December 31, 2016 and 2017
A5: Assets
A6: Current Assets | B6: 2017 | C6: 2016
A7: Cash | B7: =Worksheet!I8 -> $85,793.06 | C7: =Worksheet!C8 -> $11,025.19
A8: Accounts Receivable | B8: =Worksheet!E9 -> $49,396.00 | C8: =Worksheet!C9-Worksheet!D10 -> $11,065.00
A9: Account Receivable from employees | B9: =Worksheet!F47 -> $375.00
A10: Inventory | B10: =Worksheet!I12 -> $186,877.00 | C10: =Worksheet!E12 -> $101,681.00
A11: Prepaid expenses | B11: =Worksheet!E13 -> $1,500.00
A12: Marketable securities | B12: =Worksheet!E14 -> $22,819.00 | C12: 0
A13: Total Current Assests | B13: =SUM(B7:B12) -> $346,760.06 | C13: =SUM(C7:C12) -> $123,771.19
A14: Note Receivable
A15: Total Assets | B15: =Worksheet!E18 -> $7,000.00
A16: Fixed Assets
A17: Net of Accumulated Depreciation | B17: =Worksheet!E16-Worksheet!F17 -> $250,171.90 | C17: =Worksheet!C16-Worksheet!D17 -> $239,105.50
A18: Total Assets
A19: Liabilites and Stockholders' Equity
A20: Current Liabilities
A21: Unearned Revenue | B21: =Worksheet!F30 -> $1,800.00
A22: Accounts payable | B22: =Worksheet!F20 -> $7,952.01 | C22: =Worksheet!D20 -> $11,279.35
A23: Payroll taxes withheld and payable | B23: =Worksheet!F22+Worksheet!F23+Worksheet!F24+Worksheet!F24+Worksheet!F25 -> $3,758.70 | C23: =Worksheet!D22+Worksheet!D23+Worksheet!D24+Worksheet!D25 -> $3,284.54
A24: Federal income taxes payable | B24: =Worksheet!I58 -> $28,406.84 | C24: =Worksheet!D26 -> $29,797.00
A25: Interest Payable | B25: =Worksheet!H28 -> $106.85
A26: Dividend Payable | B26: =Worksheet!F27 -> $8,250.00 | C26: 0
A27: Total Current Liabilities | B27: =SUM(B21:B26) -> $50,274.40 | C27: =SUM(C22:C26) -> $44,360.89
A28: Note Payable
A29: Total Liabilties | B29: =Worksheet!F29 -> $48,000.00 | C29: 0
B30: =SUM(B27:B29) -> $98,274.40 | C30: =C27 -> $44,360.89
A31: Stockholders' Equity
A32: Common Stock | B32: =Worksheet!J32 -> $225,000.00 | C32: =Worksheet!J32 -> $225,000.00
A33: Retained Earnings | B33: =Worksheet!K64 -> $160,972.08 | C33: =Worksheet!F35 -> $90,264.99
A34: Total Stockholders' Equity | B34: =B32+B33 -> $385,972.08 | C34: =C32+C33 -> $315,264.99
A35: Total Liabilties and Stockholders' Equity

Sheet Trial Balances
A1: Waren Sports Supply
A2: Accounts Receivable Aged Trial Balance
A3: 2017-12-31
D5: Age in Days
A6: Cust. No. | B6: Customer | C6: Amount Due | D6: Current | E6: 31-60 | F6: 61-90 | G6: Over 90
A7: 408 | B7: Branch College | C7: $1,200.00 | G7: $1,200.00
A8: 409 | B8: Univ. of Southern Iowa | C8: $19,894.00 | D8: $19,894.00
A9: 410 | B9: Eastern Wisconsin Univ. | C9: $28,302.00 | D9: $8,397.00 | E9: $19,905.00 | G9: 0
B10: Total | C10: =SUM(C7:C9) -> $49,396.00 | D10: =SUM(D8:D9) -> $28,291.00 | E10: =E9 -> $19,905.00 | G10: =G7 -> $1,200.00
C11: NF
A13: Waren Sports Supply
A14: Accounts Payable Trial Balance
A15: 2017-12-31
A17: Vend. No. | B17: Name | E17: Amount Payable
A18: 253 | B18: Chicago Office Supply | E18: $4,302.01
A19: 261 | B19: Gillett Consulting | E19: $3,650.00
C20: Total | E20: =SUM(E18:E19) -> $7,952.01 | F20: NF
A23: Waren Sports Supply
A24: Fixed Asset Trial Balance
A25: 2017-12-31
A27: Asset | C27: Cost | D27: Accum. Dep. | E27: Net Book Value
A28: Office Furniture | C28: $49,500.00 | D28: $49,500.00
A29: Delivery Trucks | C29: $69,255.00 | D29: $34,627.50 | E29: $34,627.50
A30: Inventory Handling System | C30: $200,600.00 | D30: $30,099.00 | E30: $170,561.00
A31: 14 GB Rack Server | C31: $7,367.00 | D31: $736.70 | E31: $6,630.30
A32: 11-inch Tablet | C32: $3,699.40 | D32: $369.94 | E32: $3,329.46
C33: =SUM(C28:C32) -> $330,421.40 | D33: =SUM(D28:D32) -> $115,333.14 | E33: =SUM(E29:E32) -> $215,148.26
C34: NF

Sheet Post-Closing Trial Balance
A1: Waren Sports Supply
A2: Post-Closing Trial Balance
A3: 2017-12-31
A5: ACCT. NO. | B5: Account Title | C5: Debit | D5: Credit
B6: Assets
A7: 10100 | B7: Cash | C7: =Worksheet!E8 -> $85,793.06
A8: 10200 | B8: Account receivable | C8: =Worksheet!E9 -> $49,396.00
A9: 10300 | B9: Account receivable from employee | C9: =Worksheet!E10 -> $375.00
A10: 10400 | B10: Allowance for doubtful accounts | D10: =Worksheet!H11 -> $3,814.84
A11: 10500 | B11: Inventory | C11: =Worksheet!I12 -> $186,877.00
A12: 10600 | B12: Prepaid expenses | C12: =Worksheet!E13 -> $1,500.00
A13: 10700 | B13: Marketable securities | C13: =Worksheet!E14 -> $22,819.00
A14: 10800 | B14: Fixed asset | C14: =Worksheet!E16 -> $330,481.40
A15: 10900 | B15: Accumulated depreciation | D15: =Worksheet!J17 -> $115,333.14
A16: 11000 | B16: Not Receivable | C16: =Worksheet!E18 -> $7,000.00
B17: Liabilities
A18: 20100 | B18: Account Payable | D18: =Worksheet!F20 -> $7,952.01
A19: 20300 | B19: Federal income taxes withheld | D19: =Worksheet!F22 -> $1,415.00
A20: 20400 | B20: state unemployment taxes payable | D20: =Worksheet!F23 -> $109.82
A21: 20500 | B21: Federal unemployment taxes payable | D21: =Worksheet!F24 -> $18.56
A22: 20600 | B22: FICA taxes payable | D22: =Worksheet!F25 -> $2,196.76
A23: 20700 | B23: Federal income tax payable | D23: $28,406.84
A24: 20800 | B24: Dividend payable | D24: =Worksheet!J27 -> $8,250.00
A25: 20900 | B25: Interest payable | D25: =Worksheet!J28 -> $106.85
A26: 21000 | B26: Notes payable | D26: =Worksheet!J29 -> $48,000.00
A27: 21100 | B27: Unearned Revenue | D27: =Worksheet!J30 -> $1,800.00
B28: Stockholders' Equity
A29: 26000 | B29: Common Stock | D29: =Worksheet!J32 -> $225,000.00
A30: 29000 | B30: Retained Earnings | C30: 0 | D30: $241,837.64
B31: Totals | C31: =SUM(C7:C16) -> $684,241.46 | D31: =SUM(D10:D30) -> $684,241.46
D32: RK
